fUSD/lending_fUSD_20250206
["ID","MTS","AMOUNT","RATE_DAILY","PERIOD"]
[351850848,1738819845652,-500.0,0.00020202,3]
[351850849,1738819845661,-500.0,0.00020202,3]
[351850850,1738819845671,-500.0,0.00020202,3]
[351850851,1738819845682,-500.0,0.00020202,3]
[351850852,1738819845691,-500.0,0.00020202,3]
[351850853,1738819845700,-238.00638705,0.00020202,3]
[351850854,1738819845709,-504.18252283,0.00020202,3]
[351850855,1738819845719,-502.9789374,0.00020202,3]
[351850856,1738819845728,-505.65641087,0.00020202,3]
[351850857,1738819845738,-500.772714,0.00020202,3]
[351850858,1738819845747,-500.0,0.00020202,3]
[351850859,1738819845756,-503.92633778,0.00020202,3]
[351850860,1738819845767,-506.88877362,0.00020202,3]
[351850861,1738819845776,-500.0,0.00020202,3]
[351850862,1738819845785,-500.0,0.00020202,3]
[351850863,1738819845795,-456.53,0.00020202,3]
[351850864,1738819845803,-500.0,0.00020202,3]
[351850866,1738819845813,-418.71,0.00020202,3]
[351850868,1738819845822,-501.13028311,0.00020202,3]
[351850869,1738819845831,-501.41046733,0.00020202,3]
[351850870,1738819845841,-504.26751263,0.00020202,3]
[351850871,1738819845850,-506.83946341,0.00020202,3]
[351850872,1738819845860,-504.90732024,0.00020202,3]
[351850873,1738819845870,-504.5608114,0.00020202,3]
[351850874,1738819845880,-500.0,0.00020202,2]
[351850875,1738819845889,-500.0,0.00020202,2]
[351850876,1738819845900,-411.70422981,0.00020202,2]
[351850877,1738819845909,-514.89388925,0.00020202,3]
[351850878,1738819845919,-503.48884204,0.00020202,3]
[351850879,1738819845929,-517.12835655,0.00020202,3]
[351850880,1738819845939,-503.16422567,0.00020202,3]
[351850881,1738819845948,-500.0,0.00020202,3]
[351850882,1738819845957,-340.6,0.00020202,3]
[351850883,1738819845966,-500.0,0.00020202,3]
[351850884,1738819845975,-500.0,0.00020202,3]
[351850885,1738819845985,-500.0,0.00020202,3]
[351850886,1738819845994,-390.49179172,0.00020202,3]
[351850887,1738819846004,-502.9059713,0.00020202,3]
[351850888,1738819846013,-536.85534523,0.00020202,3]
[351850889,1738819846022,-503.95941141,0.00020202,3]
[351850890,1738819846031,-500.0,0.00020202,3]
[351850891,1738819846039,-337.48504229,0.00020202,3]
[351850892,1738819846048,-500.0,0.00020202,3]
[351850893,1738819846058,-201.53,0.00020202,3]
[351850894,1738819846067,-500.0,0.00020202,3]
[351850895,1738819846076,-501.12596227,0.00020202,3]
[351850896,1738819846085,-500.0,0.00020202,3]
[351850897,1738819846094,-567.57,0.00020202,3]
[351850898,1738819846104,-500.0,0.00020202,3]
[351850899,1738819846114,-500.0,0.00020202,3]
[351850900,1738819846127,-500.0,0.00020202,3]
[351850901,1738819846136,-500.0,0.00020202,3]
[351850902,1738819846146,-232.83473385,0.00020202,3]
[351850903,1738819846155,-500.0,0.00020202,3]
[351850904,1738819846165,-500.0,0.00020202,3]
[351850905,1738819846250,-494.0,0.00020202,3]
[351850906,1738819846261,-500.0,0.00020202,3]
[351850907,1738819846273,-500.0,0.00020202,3]
[351850908,1738819846288,-500.0,0.00020202,3]
[351850910,1738819846302,-399.7,0.00020202,3]
[351850911,1738819846311,-500.0,0.00020202,3]
[351850913,1738819846320,-500.0,0.00020202,3]
[351850914,1738819846330,-630.76,0.00020202,3]
[351850915,1738819846339,-503.69106628,0.00020202,3]
[351850916,1738819846348,-505.90994642,0.00020202,3]
[351850917,1738819846358,-510.31320655,0.00020202,3]
[351850918,1738819846367,-503.09379956,0.00020202,3]
[351850919,1738819846376,-500.0,0.00020202,3]
[351850920,1738819846385,-546.07584197,0.00020202,3]
[351850921,1738819846394,-503.07587961,0.00020202,3]
[351850922,1738819846403,-502.11193463,0.00020202,3]
[351850923,1738819846413,-500.0,0.00020203,2]
[351850924,1738819846424,-500.0,0.00020203,3]
[351850925,1738819846434,-186.58,0.00020203,3]
[351850926,1738819846443,-500.0,0.00020203,3]
[351850927,1738819846452,-500.0,0.00020203,3]
[351850928,1738819846461,-500.0,0.00020203,3]
[351850929,1738819846470,-184.26,0.00020203,3]
[351850930,1738819846479,-500.0,0.00020203,3]
[351850931,1738819846489,-279.31,0.00020203,3]
[351850932,1738819846498,-338.42,0.00020203,3]
[351850933,1738819846508,-516.08,0.00020203,3]
[351850934,1738819846518,-500.0,0.00020203,3]
[351850935,1738819846527,-590.0,0.00020203,3]
[351850936,1738819846537,-500.0,0.00020203,3]
[351850937,1738819846546,-375.4,0.00020203,3]
[351850938,1738819846556,-500.0,0.00020203,3]
[351850939,1738819846565,-500.0,0.00020203,3]
[351850940,1738819846575,-500.0,0.00020203,3]
[351850941,1738819846585,-579.32107201,0.00020203,3]
[351850942,1738819846595,-500.0,0.00020203,3]
[351850943,1738819846605,-500.0,0.00020203,3]
[351850944,1738819846616,-164.14,0.00020203,3]
[351850945,1738819846628,-500.0,0.00020203,3]
[351850946,1738819846637,-282.73,0.00020203,3]
[351850947,1738819846647,-500.0,0.00020203,3]
[351850948,1738819846657,-500.0,0.00020203,3]
[351850949,1738819846667,-546.02,0.00020203,3]
[351850950,1738819846677,-500.0,0.00020203,3]
[351850951,1738819846687,-500.0,0.00020203,3]
[351850952,1738819846696,-500.0,0.00020203,3]
[351850953,1738819846707,-500.0,0.00020203,3]
[351850954,1738819846716,-500.0,0.00020203,3]
[351850955,1738819846726,-500.0,0.00020203,3]
[351850956,1738819846736,-500.0,0.00020203,3]
[351850957,1738819846746,-500.0,0.00020203,3]
[351850958,1738819846755,-500.0,0.00020203,3]
[351850959,1738819846766,-500.0,0.00020203,3]
[351850960,1738819846775,-500.0,0.00020203,3]
[351850961,1738819846786,-500.0,0.00020203,3]
[351850962,1738819846796,-500.0,0.00020203,3]
[351850963,1738819846806,-500.0,0.00020203,3]
[351850964,1738819846816,-500.0,0.00020203,3]
[351850965,1738819846826,-500.0,0.00020203,3]
[351850966,1738819846836,-500.0,0.00020203,3]
[351850967,1738819846846,-578.95910154,0.00020203,3]
[351850968,1738819846856,-500.0,0.00020203,3]
[351850969,1738819846865,-500.0,0.00020203,3]
[351850970,1738819846875,-184.37860003,0.00020203,3]
[351850971,1738819846884,-241.02,0.00020203,3]
[351850972,1738819846895,-500.0,0.00020203,3]
[351850973,1738819846905,-500.0,0.00020203,3]
[351850974,1738819846917,-454.82,0.00020203,3]
[351850975,1738819846927,-500.0,0.00020203,3]
[351850976,1738819846937,-500.0,0.00020203,3]
[351850977,1738819846951,-328.77883761,0.00020203,3]
[351850978,1738819846962,-500.0,0.00020203,3]
[351850979,1738819846972,-206.75,0.00020203,3]
[351850980,1738819846981,-4063.88,0.00020203,3]
[351850981,1738819846990,-4063.88,0.00020203,3]
[351850982,1738819846999,-4063.88,0.00020203,3]
[351850983,1738819847009,-4063.88,0.00020203,3]
[351850984,1738819847018,-4063.88,0.00020203,3]
[351850985,1738819847028,-4063.88,0.00020203,3]
[351850986,1738819847037,-4063.88,0.00020203,3]
[351850987,1738819847047,-4063.88,0.00020203,3]
[351850988,1738819847056,-4063.88,0.00020203,3]
[351850989,1738819847065,-4063.88,0.00020203,3]
[351850990,1738819847074,-4063.88,0.00020203,3]
[351850991,1738819847083,-4063.88,0.00020203,3]
[351850992,1738819847092,-4063.88,0.00020203,3]
[351850993,1738819847101,-4063.88,0.00020203,3]
[351850994,1738819847111,-4063.88,0.00020203,3]
[351850995,1738819847124,-500.0,0.00020203,3]
[351850996,1738819847134,-500.0,0.00020203,3]
[351850997,1738819847144,-210.11304312,0.00020203,3]
[351850998,1738819847155,-500.0,0.00020203,3]
[351850999,1738819847164,-500.0,0.00020203,3]
[351851000,1738819847173,-500.0,0.00020203,3]
[351851001,1738819847183,-500.0,0.00020203,3]
[351851002,1738819847195,-274.90239996,0.00020203,3]
[351851003,1738819847205,-500.0,0.00020203,3]
[351851004,1738819847215,-196.89,0.00020203,3]
[351851005,1738819847225,-500.0,0.00020203,3]
[351851006,1738819847234,-500.0,0.00020203,3]
[351851007,1738819847243,-500.0,0.00020203,3]
[351851008,1738819847252,-577.17424405,0.00020203,3]
[351851009,1738819847261,-505.0097292,0.00020203,3]
[351851010,1738819847270,-500.0,0.00020203,3]
[351851011,1738819847279,-500.0,0.00020203,3]
[351851012,1738819847289,-500.0,0.00020203,3]
[351851013,1738819847300,-500.0,0.00020203,3]
[351851014,1738819847311,-500.0,0.00020203,3]
[351851015,1738819847320,-294.88913753,0.00020203,3]
[351851016,1738819847329,-500.0,0.00020203,3]
[351851017,1738819847338,-500.0,0.00020203,3]
[351851018,1738819847347,-500.0,0.00020203,3]
[351851019,1738819847356,-500.0,0.00020203,3]
[351851020,1738819847366,-500.0,0.00020203,3]
[351851021,1738819847376,-500.0,0.00020203,3]
[351851022,1738819847387,-500.0,0.00020203,3]
[351851023,1738819847399,-500.0,0.00020203,3]
[351851024,1738819847408,-500.0,0.00020203,3]
[351851025,1738819847419,-500.0,0.00020203,3]
[351851026,1738819847430,-500.0,0.00020203,3]
[351851027,1738819847440,-500.0,0.00020203,3]
[351851028,1738819847450,-500.0,0.00020203,3]
[351851029,1738819847459,-187.31,0.00020203,3]
[351851030,1738819847469,-500.0,0.00020203,3]
[351851031,1738819847479,-500.0,0.00020203,3]
[351851032,1738819847489,-500.0,0.00020203,3]
[351851033,1738819847500,-636.90238657,0.00020203,3]
[351851034,1738819847510,-517.17788269,0.00020203,3]
[351851035,1738819847520,-500.0,0.00020203,3]
[351851036,1738819847530,-500.0,0.00020203,3]
[351851037,1738819847540,-500.0,0.00020203,3]
[351851038,1738819847548,-500.0,0.00020203,3]
[351851039,1738819847558,-231.22,0.00020203,3]
[351851040,1738819847568,-510.91,0.00020203,3]
[351851041,1738819847578,-500.0,0.00020203,3]
[351851042,1738819847587,-579.42,0.00020203,3]
[351851043,1738819847596,-500.0,0.00020203,3]
[351851044,1738819847605,-500.0,0.00020203,3]
[351851045,1738819847616,-500.0,0.00020203,3]
[351851046,1738819847625,-500.0,0.00020203,3]
[351851047,1738819847635,-254.52,0.00020203,3]
[351851048,1738819847644,-500.0,0.00020203,3]
[351851049,1738819847653,-500.0,0.00020203,3]
[351851050,1738819847663,-500.0,0.00020203,3]
[351851051,1738819847672,-358.07,0.00020203,3]
[351851052,1738819847681,-500.0,0.00020203,3]
[351851053,1738819847691,-500.0,0.00020203,3]
[351851054,1738819847700,-500.0,0.00020203,3]
[351851055,1738819847709,-500.0,0.00020203,3]
[351851056,1738819847719,-607.1380006,0.00020203,3]
[351851057,1738819847728,-500.0,0.00020203,3]
[351851058,1738819847737,-500.0,0.00020203,3]
[351851059,1738819847747,-572.46980557,0.00020203,3]
[351851060,1738819847756,-500.0,0.00020203,3]
[351851061,1738819847766,-513.95,0.00020203,3]
[351851062,1738819847776,-500.0,0.00020203,3]
[351851063,1738819847785,-500.0,0.00020203,3]
[351851064,1738819847794,-500.0,0.00020203,3]
[351851065,1738819847804,-500.0,0.00020203,3]
[351851066,1738819847814,-197.85680259,0.00020203,3]
[351851067,1738819847824,-500.0,0.00020203,3]
[351851068,1738819847833,-500.0,0.00020203,3]
[351851069,1738819847843,-500.0,0.00020203,3]
[351851070,1738819847852,-500.0,0.00020203,3]
[351851071,1738819847862,-500.0,0.00020203,3]
[351851072,1738819847871,-480.04,0.00020203,3]
[351851073,1738819847881,-515.89,0.00020203,3]
[351851074,1738819847891,-515.89,0.00020203,3]
[351851075,1738819847900,-515.89,0.00020203,3]
[351851076,1738819847909,-515.89,0.00020203,3]
[351851077,1738819847918,-515.89,0.00020203,3]
[351851078,1738819847998,-515.89,0.00020203,3]
[351851079,1738819848008,-515.89,0.00020203,3]
[351851080,1738819848019,-515.89,0.00020203,3]
[351851081,1738819848028,-515.89,0.00020203,3]
[351851082,1738819848039,-515.89,0.00020203,3]
[351851083,1738819848050,-515.89,0.00020203,3]
[351851084,1738819848059,-515.89,0.00020203,3]
[351851085,1738819848068,-515.89,0.00020203,3]
[351851086,1738819848077,-515.89,0.00020203,3]
[351851087,1738819848086,-500.0,0.00020203,3]
[351851088,1738819848096,-500.0,0.00020203,3]
[351851089,1738819848105,-500.0,0.00020203,3]
[351851090,1738819848116,-171.18185955,0.00020203,3]
[351851091,1738819848127,-500.0,0.00020203,3]
[351851092,1738819848136,-500.0,0.00020203,3]
[351851093,1738819848147,-500.0,0.00020203,3]
[351851094,1738819848158,-500.0,0.00020203,3]
[351851095,1738819848168,-500.0,0.00020203,3]
[351851096,1738819848178,-203.69,0.00020203,3]
[351851097,1738819848188,-500.0,0.00020203,3]
[351851098,1738819848199,-518.74,0.00020203,3]
[351851099,1738819848208,-500.0,0.00020203,3]
[351851100,1738819848218,-500.0,0.00020203,3]
[351851101,1738819848228,-500.0,0.00020203,3]
[351851102,1738819848239,-500.0,0.00020203,3]
[351851103,1738819848250,-500.0,0.00020203,3]
[351851104,1738819848260,-500.0,0.00020203,3]
[351851105,1738819848270,-500.0,0.00020203,3]
[351851106,1738819848281,-500.0,0.00020203,3]
[351851107,1738819848292,-500.0,0.00020203,3]
[351851108,1738819848303,-500.0,0.00020203,3]
[351851109,1738819848313,-500.0,0.00020203,3]
[351851110,1738819848323,-500.0,0.00020203,3]
[351851111,1738819848334,-500.0,0.00020203,3]
[351851112,1738819848344,-500.0,0.00020203,3]
[351851113,1738819848354,-500.0,0.00020203,3]
[351851114,1738819848364,-500.0,0.00020203,3]
[351851115,1738819848375,-191.48,0.00020203,3]
[351851116,1738819848386,-500.0,0.00020203,3]
[351851117,1738819848397,-500.0,0.00020203,3]
[351851118,1738819848407,-500.0,0.00020203,3]
[351851119,1738819848418,-500.0,0.00020203,3]
[351851120,1738819848428,-500.0,0.00020203,3]
[351851121,1738819848439,-504.25358731,0.00020203,3]
[351851122,1738819848450,-167.55,0.00020203,3]
[351851123,1738819848460,-500.0,0.00020203,3]
[351851124,1738819848471,-500.0,0.00020203,3]
[351851125,1738819848481,-500.0,0.00020203,3]
[351851126,1738819848490,-500.0,0.00020203,3]
[351851127,1738819848499,-263.49,0.00020203,3]
[351851128,1738819848509,-500.0,0.00020203,3]
[351851129,1738819848519,-339.23684329,0.00020203,3]
[351851130,1738819848530,-500.0,0.00020203,3]
[351851131,1738819848540,-500.0,0.00020203,3]
[351851132,1738819848556,-624.98932713,0.00020203,3]
[351851133,1738819848567,-500.0,0.00020203,3]
[351851134,1738819848578,-500.0,0.00020203,3]
[351851135,1738819848588,-250.97,0.00020203,3]
[351851136,1738819848598,-500.0,0.00020203,3]
[351851137,1738819848609,-500.0,0.00020203,3]
[351851138,1738819848619,-500.0,0.00020203,3]
[351851139,1738819848630,-322.63,0.00020203,3]
[351851140,1738819848640,-500.0,0.00020203,3]
[351851141,1738819848651,-500.0,0.00020203,3]
[351851142,1738819848662,-500.0,0.00020203,3]
[351851143,1738819848673,-500.0,0.00020203,3]
[351851144,1738819848683,-500.0,0.00020203,3]
[351851145,1738819848694,-217.75,0.00020203,3]
[351851146,1738819848705,-500.0,0.00020203,3]
[351851147,1738819848715,-479.73,0.00020203,3]
[351851148,1738819848726,-500.0,0.00020203,3]
[351851149,1738819848737,-500.0,0.00020203,3]
[351851150,1738819848748,-473.13,0.00020203,3]
[351851151,1738819848759,-500.0,0.00020203,3]
[351851152,1738819848770,-500.0,0.00020203,3]
[351851153,1738819848781,-500.0,0.00020203,3]
[351851154,1738819848791,-500.0,0.00020203,3]
[351851155,1738819848802,-500.0,0.00020203,3]
[351851156,1738819848812,-229.86,0.00020203,3]
[351851157,1738819848823,-500.0,0.00020203,3]
[351851158,1738819848833,-500.0,0.00020203,3]
[351851159,1738819848843,-500.0,0.00020203,3]
[351851160,1738819848853,-500.0,0.00020203,3]
[351851161,1738819848865,-500.0,0.00020203,3]
[351851162,1738819848875,-500.0,0.00020203,3]
[351851163,1738819848886,-500.0,0.00020203,3]
[351851164,1738819848897,-454.37712914,0.00020203,3]
[351851165,1738819848907,-185.98,0.00020203,3]
[351851166,1738819848917,-500.0,0.00020203,3]
[351851167,1738819848927,-500.0,0.00020203,3]
[351851168,1738819848938,-500.0,0.00020203,3]
[351851169,1738819848947,-500.0,0.00020203,3]
[351851170,1738819848957,-500.0,0.00020203,3]
[351851171,1738819848967,-500.0,0.00020203,3]
[351851172,1738819848977,-203.7,0.00020203,3]
[351851173,1738819848988,-500.0,0.00020203,3]
[351851174,1738819848998,-500.0,0.00020203,3]
[351851175,1738819849008,-500.0,0.00020203,3]
[351851176,1738819849019,-500.0,0.00020203,3]
[351851177,1738819849029,-236.82,0.00020203,3]
[351851178,1738819849040,-500.0,0.00020203,3]
[351851179,1738819849051,-475.43,0.00020203,3]
[351851180,1738819849061,-571.58,0.00020203,3]
[351851181,1738819849071,-500.0,0.00020203,3]
[351851182,1738819849082,-500.0,0.00020203,3]
[351851183,1738819849092,-500.0,0.00020203,3]
[351851184,1738819849102,-500.0,0.00020203,3]
[351851185,1738819849113,-500.0,0.00020203,3]
[351851186,1738819849127,-500.0,0.00020203,3]
[351851187,1738819849137,-500.0,0.00020203,3]
[351851188,1738819849148,-500.0,0.00020203,3]
[351851189,1738819849159,-430.07600715,0.00020203,3]
[351851190,1738819849169,-500.0,0.00020203,3]
[351851191,1738819849179,-293.0,0.00020203,3]
[351851192,1738819849190,-500.0,0.00020203,3]
[351851193,1738819849201,-500.0,0.00020203,3]
[351851194,1738819849212,-500.0,0.00020203,3]
[351851195,1738819849224,-500.0,0.00020203,3]
[351851196,1738819849235,-156.62497647,0.00020203,3]
[351851197,1738819849245,-500.0,0.00020203,3]
[351851198,1738819849255,-500.0,0.00020203,3]
[351851199,1738819849266,-500.0,0.00020203,3]
[351851200,1738819849276,-500.0,0.00020203,3]
[351851201,1738819849287,-500.0,0.00020203,3]
[351851202,1738819849298,-559.40308699,0.00020203,3]
[351851203,1738819849310,-500.0,0.00020203,3]
[351851204,1738819849321,-500.0,0.00020203,3]
[351851205,1738819849332,-500.0,0.00020203,3]
[351851206,1738819849343,-500.0,0.00020203,3]
[351851207,1738819849353,-628.17046685,0.00020203,3]
[351851208,1738819849361,-500.0,0.00020203,3]
[351851209,1738819849369,-500.0,0.00020203,3]
[351851210,1738819849377,-500.0,0.00020203,3]
[351851211,1738819849385,-500.0,0.00020203,3]
[351851212,1738819849392,-500.0,0.00020203,3]
[351851213,1738819849401,-500.0,0.00020203,3]
[351851214,1738819849408,-500.0,0.00020203,3]
[351851215,1738819849415,-500.0,0.00020203,3]
[351851216,1738819849422,-500.0,0.00020203,3]
[351851217,1738819849430,-500.0,0.00020203,3]
[351851218,1738819849437,-275.2434473,0.00020203,3]
[351851219,1738819849446,-500.0,0.00020203,3]
[351851220,1738819849453,-500.0,0.00020203,3]
[351851221,1738819849461,-203.86844655,0.00020203,3]
[351851222,1738819849468,-500.0,0.00020203,3]
[351851223,1738819849475,-500.0,0.00020203,3]
[351851224,1738819849482,-500.0,0.00020203,3]
[351851225,1738819849488,-321.48815134,0.00020203,3]
[351851226,1738819849496,-500.0,0.00020203,3]
[351851227,1738819849505,-500.0,0.00020203,3]
[351851228,1738819849511,-500.0,0.00020203,3]
[351851229,1738819849517,-500.0,0.00020203,3]
[351851230,1738819849526,-500.0,0.00020203,3]
[351851231,1738819849536,-500.0,0.00020203,3]
[351851232,1738819849545,-500.0,0.00020203,3]
[351851233,1738819849555,-500.0,0.00020203,3]
[351851234,1738819849564,-500.0,0.00020203,3]
[351851235,1738819849574,-205.80616397,0.00020203,3]
[351851236,1738819849657,-500.0,0.00020203,3]
[351851237,1738819849667,-500.0,0.00020203,3]
[351851238,1738819849676,-279.76,0.00020203,3]
[351851239,1738819849685,-1114.59,0.00020203,2]
[351851240,1738819849695,-500.0,0.00020203,3]
[351851241,1738819849704,-500.0,0.00020203,3]
[351851242,1738819849713,-500.0,0.00020203,3]
[351851243,1738819849723,-367.19,0.00020203,3]
[351851244,1738819849732,-184.79782672,0.00020203,3]
[351851245,1738819849742,-941.0,0.00020203,2]
[351851246,1738819849751,-666.0,0.00020214,2]
[351851247,1738819849760,-500.0,0.00020215,3]
[351851248,1738819849770,-360.15840516,0.00020215,3]
[351851249,1738819849779,-500.0,0.00020215,3]
[351851250,1738819849788,-604.42687109,0.00020215,3]
[351851251,1738819849797,-500.0,0.00020215,3]
[351851252,1738819849807,-471.07563266,0.00020215,3]
[351851253,1738819849816,-500.0,0.00020215,3]
[351851254,1738819849825,-500.0,0.00020215,3]
[351851255,1738819849836,-500.0,0.00020215,3]
[351851256,1738819849845,-500.0,0.00020215,3]
[351851257,1738819849855,-545.24800922,0.00020215,3]
[351851258,1738819849864,-500.0,0.00020215,3]
[351851259,1738819849873,-500.0,0.00020215,3]
[351851260,1738819849882,-500.0,0.00020215,3]
[351851261,1738819849892,-500.0,0.00020215,3]
[351851262,1738819849902,-500.0,0.00020215,3]
[351851263,1738819849911,-500.0,0.00020215,3]
[351851264,1738819849920,-500.0,0.00020215,3]
[351851265,1738819849929,-500.0,0.00020215,3]
[351851266,1738819849939,-500.0,0.00020215,3]
[351851267,1738819849948,-500.0,0.00020215,3]
[351851268,1738819849956,-500.0,0.00020215,3]
[351851269,1738819849965,-500.0,0.00020215,3]
[351851270,1738819849974,-500.0,0.00020215,3]
[351851271,1738819849984,-500.0,0.00020215,3]
[351851272,1738819849994,-500.0,0.00020215,3]
[351851273,1738819850003,-500.0,0.00020215,3]
[351851274,1738819850012,-500.0,0.00020215,3]
[351851275,1738819850023,-500.0,0.00020215,3]
[351851276,1738819850032,-207.17399547,0.00020215,3]
[351851277,1738819850042,-414.55639761,0.00020215,3]
[351851278,1738819850052,-151.696275,0.00020215,2]
[351851279,1738819850063,-3572.82227,0.00020215,2]
[351851280,1738819850074,-3572.82227,0.00020215,2]
[351851281,1738819850084,-3572.82227,0.00020215,2]
[351851282,1738819850093,-3572.82227,0.00020215,2]
[351851283,1738819850103,-3572.82227,0.00020215,2]
[351851284,1738819850112,-3572.82227,0.00020215,2]
[351851285,1738819850129,-3572.82227,0.00020215,2]
[351851286,1738819850137,-3572.82227,0.00020215,2]
[351851287,1738819850147,-3572.82227,0.00020215,2]
[351851288,1738819850156,-3572.82227,0.00020215,2]
[351851289,1738819850166,-151.0,0.00020215,2]
[351851290,1738819850176,-151.0,0.00020215,2]
[351851291,1738819850185,-151.0,0.00020215,2]
[351851292,1738819850195,-151.0,0.00020215,2]
[351851293,1738819850205,-151.0,0.00020215,2]
[351851294,1738819850214,-421.85826409,0.00020215,3]
[351851295,1738819850223,-500.0,0.00020215,3]
[351851296,1738819850234,-500.0,0.00020215,3]
[351851297,1738819850243,-479.75783704,0.00020215,3]
[351851298,1738819850252,-500.0,0.00020215,3]
[351851299,1738819850261,-612.33386011,0.00020215,3]
[351851300,1738819850271,-239.65741907,0.00020215,2]
[351851301,1738819850280,-156.0163774,0.00020215,2]
[351851302,1738819850289,-163883.23493897,0.00020215,2]
[351851303,1738819850298,-139871.17213348,0.00020215,2]
[351851304,1738819850307,-150.29021254,0.00020215,2]
[351851305,1738819850317,-964.57548056,0.00020215,5]
[351851306,1738819850326,-5019.91608533,0.00020215,2]
[351851307,1738819850335,-359.27034488,0.00020215,90]
[351851308,1738819850344,-2241.95433663,0.00020215,14]
[351851309,1738819850353,-246.5060834,0.00020215,2]
[351851310,1738819850362,-162.64703198,0.00020215,2]
[351851311,1738819850371,-861.94074535,0.00020215,5]
[351851312,1738819850381,-1248.41721295,0.00020215,2]
[351851313,1738819850390,-216.30019167,0.00020215,60]
[351851314,1738819850399,-7637.89906736,0.00020215,2]
[351851315,1738819850408,-51999.95623602,0.00020215,30]
[351851316,1738819850417,-154.68374535,0.00020215,120]
[351851317,1738819850427,-22890.67373302,0.00020215,120]
[351851318,1738819850435,-1223.06178881,0.00020215,15]
[351851319,1738819850445,-2210.0095629,0.00020215,10]
[351851320,1738819850454,-180.25350951,0.00020215,2]
[351851321,1738819850463,-155.10771478,0.00020215,120]
[351851322,1738819850472,-1030.47249584,0.00020215,2]
[351851323,1738819850481,-584.65623675,0.00020215,5]
[351851324,1738819850491,-9600.11413979,0.00020215,2]
[351851325,1738819850501,-588.5255122,0.00020215,2]
[351851326,1738819850510,-213606.78297013,0.00020215,120]
[351851327,1738819850519,-9141.67390127,0.00020215,2]
[351851328,1738819850530,-1297.78683907,0.00020215,2]
[351851329,1738819850540,-2240.16425063,0.00020215,10]
[351851330,1738819850549,-1000.0,0.00020215,10]
[351851331,1738819850559,-3384.93188283,0.00020215,2]
[351851332,1738819850568,-20584.14704769,0.00020215,7]
[351851333,1738819850577,-4363.79546629,0.00020215,7]
[351851334,1738819850587,-204.7647857,0.00020215,30]
[351851335,1738819850596,-22554.6273424,0.00020215,2]
[351851336,1738819850606,-12702.3309951,0.00020215,2]
[351851337,1738819850615,-1901.61643891,0.00020215,2]
[351851338,1738819850625,-182.16891157,0.00020215,2]
[351851339,1738819850635,-14690.23526739,0.00020215,3]
[351851340,1738819850644,-643.0,0.00020215,2]
[351851341,1738819850654,-5261.56802708,0.00020215,4]
[351851342,1738819850663,-960.298184,0.00020215,2]
[351851343,1738819850673,-15282.59913957,0.00020215,10]
[351851344,1738819850682,-9544.14951096,0.00020215,2]
[351851345,1738819850692,-176.58655675,0.00020215,120]
[351851346,1738819850702,-500.0,0.00020215,10]
[351851347,1738819850711,-18679.66655984,0.00020215,5]
[351851348,1738819850722,-25088.09099817,0.00020215,2]
[351851349,1738819850731,-12742.16250065,0.00020215,30]
[351851350,1738819850740,-567.18618867,0.00020215,2]
[351851351,1738819850750,-51400.49168581,0.00020215,30]